bitfinex/quotes_SOLUSD_20241022
["timestamp","ask_amount","ask_price","bid_price","bid_amount"]
[1729560897248,20.0,166.89,166.79,17.27030499]
[1729560897428,25.992,166.89,166.79,17.27030499]
[1729560897745,5.9928,166.87,166.79,17.27030499]
[1729560898941,20.0,166.89,166.79,17.27030499]
[1729560899145,5.9923,166.88,166.79,17.27030499]
[1729560901235,5.9923,166.88,166.76,16.3763]
[1729560901236,23.776884,166.88,166.77,17.27030499]
[1729560901430,23.776884,166.88,166.76,16.3763]
[1729560901837,20.0,166.85,166.73,17.27030499]
[1729560902044,5.9947,166.82,166.72,22.3998]
[1729560903758,23.776884,166.82,166.72,22.3998]
[1729560903937,20.0,166.81,166.68,29.10772064]
[1729560904130,5.9961,166.78,166.68,29.10772064]
[1729560906059,5.9962,166.77,166.68,29.10772064]
[1729560906435,5.9962,166.77,166.68,22.8649]
[1729560906844,5.997,166.75,166.68,22.8649]
[1729560907645,14.988,166.8,166.68,22.8649]
[1729560907848,5.997,166.76,166.68,22.8649]
[1729560908549,5.997,166.75,166.68,22.8649]
[1729560917267,20.0,166.79,166.68,22.8649]
[1729560917447,5.9965,166.77,166.68,22.8649]
[1729560919060,20.0,166.79,166.68,22.8649]
[1729560919238,5.9966,166.76,166.68,22.8649]
[1729560920356,20.0,166.79,166.68,22.8649]
[1729560920561,5.9955,166.79,166.69,17.27030499]
[1729560922069,5.9962,166.78,166.69,17.27030499]
[1729560924271,20.0,166.8,166.68,22.8649]
[1729560924574,5.9976,166.74,166.68,16.3125]
[1729560926571,23.776884,166.77,166.68,16.3125]
[1729560926950,5.997,166.75,166.68,16.3125]
[1729560927153,23.776884,166.75,166.65,0.6150836]
[1729560927351,43.776884,166.75,166.65,0.6150836]
[1729560927554,5.997,166.75,166.65,0.6150836]
[1729560927766,5.9966,166.76,166.65,0.6150836]
[1729560928077,5.9959,166.78,166.68,17.27030499]
[1729560928245,43.776884,166.79,166.68,17.27030499]
[1729560928450,5.9964,166.77,166.68,17.27030499]
[1729560928658,5.9966,166.76,166.68,17.27030499]
[1729560928986,43.776884,166.79,166.66,17.27030499]
[1729560929279,43.776884,166.79,166.65,0.6150836]
[1729560929456,5.9973,166.74,166.65,0.6150836]
[1729560932264,20.0,166.76,166.65,0.6150836]
[1729560932465,5.9955,166.79,166.68,17.27030499]
[1729560932765,5.9962,166.77,166.68,17.27030499]
[1729560934578,15.4633,166.8,166.66,41.04718899]
[1729560934786,15.4633,166.8,166.65,0.6150836]
[1729560934787,43.776884,166.79,166.65,0.6150836]
[1729560935077,5.9976,166.74,166.65,0.6150836]
[1729560935658,41.726884,166.79,166.65,0.6150836]
[1729560935854,5.9978,166.73,166.65,0.6150836]
[1729560936074,5.9966,166.76,166.66,17.27030499]
[1729560936865,5.9966,166.76,166.65,0.6150836]
[1729560936866,5.9974,166.74,166.65,0.6150836]
[1729560938977,23.776884,166.76,166.65,0.6150836]
[1729560939183,5.9976,166.74,166.65,0.6150836]
[1729560939478,5.9977,166.73,166.65,0.6150836]
[1729560941389,23.776884,166.72,166.65,0.6150836]
[1729560941561,5.9984,166.71,166.65,0.6150836]
[1729560943069,5.9988,166.7,166.65,0.6150836]
[1729560943568,43.776884,166.68,166.65,0.6150836]
[1729560944069,6.0002,166.66,166.65,0.6150836]
[1729560944265,5.9996,166.68,166.65,0.6150836]
[1729560944569,5.9992,166.69,166.65,0.6150836]
[1729560944771,5.9997,166.68,166.65,0.6150836]
[1729560945789,43.776884,166.71,166.65,0.6150836]
[1729560946087,6.0002,166.67,166.65,0.6150836]
[1729560946475,6.0002,166.66,166.65,0.6150836]
[1729560946791,29.777084,166.66,166.65,0.6150836]
[1729560952194,6.0002,166.66,166.65,0.6150836]
[1729560952789,29.777084,166.66,166.65,0.6150836]
[1729560954967,5.9997,166.68,166.65,0.6150836]
[1729560955167,20.0,166.71,166.65,0.6150836]
[1729560955363,6.0,166.67,166.65,0.6150836]
[1729560955778,5.9992,166.69,166.65,0.6150836]
[1729560955993,20.0,166.71,166.65,0.6150836]
[1729560956173,5.9991,166.7,166.65,0.6150836]
[1729560956971,5.9993,166.69,166.65,0.6150836]
[1729560957292,5.9997,166.68,166.65,0.6150836]
[1729560959093,23.776884,166.7,166.65,0.6150836]
[1729560959294,5.9993,166.69,166.65,0.6150836]
[1729560959869,5.9996,166.68,166.65,0.6150836]
[1729560960075,5.9998,166.67,166.65,0.6150836]
[1729560965689,29.777084,166.66,166.65,0.6150836]
[1729560970594,49.777084,166.66,166.65,0.6150836]
[1729560971183,20.0,166.65,166.55,16.6222]
[1729560971702,6.0023,166.61,166.55,16.6222]
[1729560972088,23.776884,166.64,166.55,16.6222]
[1729560972089,6.0027,166.6,166.55,16.6222]
[1729560973899,26.0013,166.63,166.55,27.69921667]
[1729560974101,20.41032468,166.67,166.55,27.69921667]
[1729560974102,26.0007,166.65,166.57,11.07701667]
[1729560974404,15.1547,166.71,166.59,11.07701667]
[1729560974581,15.1547,166.76,166.63,11.07701667]
[1729560975090,17.95,166.75,166.62,16.482]
[1729560975396,5.9989,166.7,166.62,16.482]
[1729560975600,15.2547,166.76,166.65,11.07701667]
[1729560975601,15.1547,166.76,166.65,11.07701667]
[1729560975783,15.1547,166.76,166.63,11.07701667]
[1729560975983,14.9925,166.75,166.62,16.482]
[1729560976183,33.2047,166.76,166.62,16.482]
[1729560976400,14.9934,166.74,166.62,16.482]
[1729560976701,0.1,166.74,166.61,6.1336]
[1729560976997,6.0007,166.65,166.57,21.6582]
[1729560977204,15.9997,166.68,166.57,21.6582]
[1729560977396,15.9997,166.68,166.57,15.2276]
[1729560977715,6.0014,166.63,166.57,15.2276]
[1729560978293,15.9997,166.68,166.57,15.2276]
[1729560978579,6.0006,166.65,166.57,15.2276]
[1729560982196,26.0,166.67,166.57,15.2276]
[1729560982487,5.9999,166.67,166.57,15.2276]
[1729560989594,5.9994,166.69,166.58,23.49714689]
[1729560989800,5.9994,166.69,166.6,17.31344689]
[1729560994903,5.9984,166.71,166.6,17.31344689]
[1729560995114,5.9984,166.71,166.62,17.31344689]
[1729560998318,5.9984,166.71,166.64,11.07103295]
[1729561001619,43.776884,166.73,166.64,11.07103295]
[1729561001806,5.9984,166.72,166.64,11.07103295]
[1729561002711,5.9985,166.71,166.64,11.07103295]
[1729561005822,23.776884,166.73,166.64,26.61163295]
[1729561006111,5.9982,166.72,166.64,26.61163295]
[1729561006818,16.2045,166.76,166.64,26.61163295]
[1729561006819,5.9975,166.74,166.66,11.07103295]
[1729561007819,5.9977,166.73,166.66,11.07103295]
[1729561009619,16.2045,166.76,166.66,11.07103295]
[1729561009818,5.9973,166.75,166.68,11.07103295]
[1729561011232,5.9964,166.77,166.7,11.07103295]
[1729561011541,5.9966,166.76,166.7,11.07103295]
[1729561011716,5.9966,166.76,166.68,11.07103295]
[1729561012824,43.776884,166.79,166.7,11.07103295]
[1729561013018,5.9963,166.77,166.7,11.07103295]
[1729561014005,5.9952,166.8,166.72,11.07103295]
[1729561014427,5.9944,166.82,166.74,11.07103295]
[1729561014722,16.4094,166.84,166.73,23.1395]
[1729561014899,5.995,166.81,166.73,23.1395]
[1729561016106,16.4094,166.84,166.69,21.7247]
[1729561016107,23.776884,166.82,166.69,21.7247]
[1729561016317,5.997,166.75,166.69,15.7188]
[1729561016721,5.9965,166.77,166.69,15.7188]
[1729561016919,14.988,166.8,166.69,15.7188]
[1729561016920,43.776884,166.79,166.69,15.7188]
[1729561017130,5.9969,166.76,166.69,15.7188]
[1729561019332,5.4969,166.76,166.69,15.7188]
[1729561020613,16.6193,166.78,166.65,23.1007]
[1729561020935,43.776884,166.77,166.65,23.1007]
[1729561021131,5.9974,166.74,166.65,23.1007]
[1729561021334,5.9977,166.73,166.65,23.1007]
[1729561023034,5.9984,166.71,166.65,23.1007]
[1729561023224,23.776884,166.74,166.65,16.5323]
[1729561023413,20.0,166.73,166.62,11.07103295]
[1729561023943,5.998,166.72,166.62,11.07103295]
[1729561024116,6.3071,166.76,166.64,11.07103295]
[1729561024321,16.6193,166.78,166.66,11.07103295]
[1729561024518,43.776884,166.77,166.66,11.07103295]
[1729561024716,5.9973,166.74,166.66,11.07103295]
[1729561025317,20.0,166.76,166.64,11.07103295]
[1729561025519,5.9979,166.73,166.64,11.07103295]
[1729561027814,5.9974,166.74,166.64,11.07103295]
[1729561028927,5.9978,166.73,166.64,11.07103295]
[1729561029341,5.9991,166.7,166.62,17.29245538]
[1729561029522,5.9991,166.7,166.62,11.07103295]
[1729561031713,43.776884,166.73,166.62,11.07103295]
[1729561031924,5.9987,166.71,166.62,11.07103295]
[1729561034828,5.9986,166.71,166.61,22.9344]
[1729561035035,5.9986,166.71,166.63,11.07103295]
[1729561035634,5.9995,166.69,166.61,22.9344]
[1729561035845,5.9984,166.71,166.62,11.07103295]
[1729561036141,5.9981,166.72,166.64,11.07103295]
[1729561037520,20.0,166.72,166.62,11.07103295]
[1729561037842,34.9952,166.72,166.61,27.59593295]
[1729561038047,6.1305,166.74,166.65,11.07103295]
[1729561038340,25.9976,166.74,166.65,11.07103295]
[1729561039149,5.9979,166.73,166.65,11.07103295]
[1729561040939,5.9973,166.74,166.67,11.07103295]
[1729561041251,15.3201,166.76,166.67,11.07103295]
[1729561042325,5.9962,166.77,166.69,11.07103295]
[1729561043524,6.1755,166.82,166.75,11.07103295]
[1729561043728,5.9948,166.81,166.75,11.07103295]
[1729561043925,6.1755,166.82,166.75,11.07103295]
[1729561044128,6.1755,166.82,166.73,11.07103295]
[1729561044338,5.9952,166.8,166.73,11.07103295]
[1729561046641,20.0,166.83,166.75,11.07103295]
[1729561047022,5.9945,166.82,166.75,11.07103295]
[1729561049449,5.9941,166.83,166.75,26.64053295]
[1729561049828,5.9941,166.83,166.77,11.07103295]
[1729561050328,5.9938,166.84,166.77,11.07103295]
[1729561051842,5.9941,166.83,166.77,11.07103295]
[1729561052531,5.994,166.84,166.77,11.07103295]
[1729561053448,5.9934,166.85,166.79,11.07103295]
[1729561055751,5.9934,166.85,166.77,11.07103295]
[1729561058051,43.776884,166.87,166.76,6.5123]
[1729561058257,5.9946,166.82,166.75,15.5695]
[1729561060347,5.9948,166.81,166.75,15.5695]
[1729561060552,58.758584,166.87,166.72,22.0432]
[1729561060553,5.9959,166.78,166.72,22.0432]
[1729561060745,5.9965,166.77,166.69,11.07103295]
[1729561061758,23.776884,166.82,166.71,11.07103295]
[1729561061938,5.9948,166.81,166.73,11.07103295]
[1729561063133,5.9952,166.8,166.73,11.07103295]
[1729561064950,5.9948,166.81,166.73,11.07103295]
[1729561065259,5.9952,166.8,166.73,11.07103295]
[1729561067553,5.9958,166.79,166.71,11.07103295]
[1729561067758,20.0,166.81,166.68,21.8529]
[1729561067940,5.9962,166.78,166.7,11.07103295]
[1729561068854,20.0,166.81,166.7,11.07103295]
[1729561068855,5.9963,166.77,166.7,11.07103295]
[1729561072834,20.0,166.81,166.72,11.07103295]
[1729561073163,5.9956,166.79,166.72,11.07103295]
[1729561074254,23.776884,166.82,166.72,11.07103295]
[1729561074459,5.9951,166.81,166.74,11.07103295]
[1729561074839,5.9952,166.8,166.74,11.07103295]
[1729561075154,5.9952,166.8,166.7,11.07103295]
[1729561075349,5.9955,166.79,166.7,11.07103295]
[1729561075765,5.9966,166.77,166.68,21.8529]
[1729561076066,5.9966,166.77,166.68,32.92393295]
[1729561076250,5.9967,166.76,166.68,21.8529]
[1729561076455,5.9971,166.75,166.68,21.8529]
[1729561076769,5.9974,166.74,166.68,15.8212]
[1729561077353,5.997,166.75,166.68,26.89223295]
[1729561078664,5.997,166.75,166.68,15.8212]
[1729561078964,5.997,166.75,166.68,26.89223295]
[1729561083462,22.3106,166.77,166.64,27.62571864]
[1729561083640,43.776884,166.76,166.64,21.3866]
[1729561083842,43.776884,166.76,166.65,11.07103295]
[1729561084042,5.9977,166.74,166.65,11.07103295]
[1729561084238,5.9978,166.73,166.65,11.07103295]
[1729561085671,5.998,166.72,166.64,32.45763295]
[1729561085974,5.9988,166.7,166.61,11.07103295]
[1729561086681,5.9988,166.7,166.63,11.07103295]
[1729561089049,61.806884,166.76,166.63,11.07103295]
[1729561089357,6.0002,166.66,166.59,6.25148365]
[1729561089665,5.9998,166.68,166.59,11.07103295]
[1729561090972,5.9984,166.71,166.63,11.07103295]
[1729561091157,15.2783,166.72,166.63,11.07103295]
[1729561091361,21.2766,166.72,166.63,11.07103295]
[1729561091869,15.2783,166.72,166.63,11.07103295]
[1729561092166,5.9984,166.71,166.63,11.07103295]
[1729561101975,43.776884,166.71,166.58,16.1684]
[1729561102179,5.9999,166.67,166.59,11.07103295]
[1729561102849,5.9995,166.68,166.59,11.07103295]
[1729561110374,61.806884,166.71,166.58,16.1684]
[1729561110578,61.806884,166.71,166.58,27.23943295]
[1729561110769,6.0006,166.65,166.58,27.23943295]
[1729561110963,14.997,166.7,166.56,6.132]
[1729561110964,65.359584,166.69,166.56,6.132]
[1729561111171,43.776884,166.67,166.56,6.132]
[1729561111479,6.0008,166.65,166.56,6.132]
[1729561112067,6.0008,166.65,166.57,11.07103295]
[1729561112868,6.0013,166.63,166.56,6.132]
[1729561113067,6.0013,166.63,166.55,11.07103295]
[1729561113271,6.0017,166.62,166.54,16.3816]
[1729561113771,6.0006,166.65,166.54,16.3816]
[1729561113969,43.776884,166.62,166.5,6.26620684]
[1729561114173,6.0035,166.57,166.49,26.45363295]
[1729561114584,20.0,166.59,166.49,26.45363295]
[1729561114885,26.0031,166.59,166.49,26.45363295]
[1729561120693,26.0031,166.59,166.49,15.3826]
[1729561120891,6.0039,166.56,166.49,15.3826]
[1729561121194,6.0035,166.57,166.49,15.3826]
[1729561125395,23.776884,166.58,166.5,11.07103295]
[1729561125593,29.779984,166.58,166.5,11.07103295]
[1729561125890,6.0037,166.57,166.5,11.07103295]
[1729561127300,23.776884,166.59,166.52,11.07103295]
[1729561127487,29.779584,166.59,166.52,11.07103295]
[1729561128200,29.779584,166.59,166.5,11.07103295]
[1729561128376,6.0031,166.58,166.5,11.07103295]
[1729561128584,29.779584,166.59,166.5,11.07103295]
[1729561130079,29.779584,166.59,166.49,15.3826]
[1729561130280,29.779584,166.59,166.5,11.07103295]
[1729561130786,23.776884,166.59,166.49,15.3826]
[1729561130991,6.0031,166.58,166.49,26.45363295]
[1729561131504,6.0031,166.58,166.51,11.07103295]
[1729561132999,6.0012,166.64,166.55,11.07103295]
[1729561133303,21.6244,166.65,166.57,11.07103295]
[1729561133488,15.6238,166.65,166.57,11.07103295]
[1729561133694,15.6238,166.65,166.56,15.067]
[1729561134096,15.6238,166.65,166.55,11.07103295]
[1729561134313,6.0012,166.64,166.55,11.07103295]
[1729561135699,23.776884,166.62,166.52,15.067]
[1729561135893,6.002,166.61,166.52,26.13803295]
[1729561136396,23.776884,166.6,166.52,15.067]
[1729561136619,23.776884,166.62,166.52,15.067]
[1729561136797,23.776884,166.62,166.48,16.0726836]
[1729561136798,6.0032,166.58,166.48,16.0726836]
[1729561137202,6.0032,166.58,166.49,17.32199801]
[1729561138904,6.0027,166.6,166.49,17.32199801]
[1729561139204,23.776884,166.59,166.49,17.32199801]
[1729561139603,6.0027,166.59,166.49,17.32199801]
[1729561140805,20.0,166.63,166.51,17.32199801]
[1729561141008,21.7012,166.65,166.53,17.32199801]
[1729561141314,21.7012,166.65,166.53,23.88819801]
[1729561141818,6.0009,166.64,166.54,16.5207]
[1729561142025,15.6238,166.65,166.55,17.32199801]
[1729561142421,6.001,166.64,166.55,17.32199801]
[1729561142605,15.6238,166.65,166.55,17.32199801]
[1729561142909,6.0005,166.66,166.55,17.32199801]
[1729561143111,5.9995,166.68,166.55,17.32199801]
[1729561143414,15.1114,166.69,166.56,17.52199801]
[1729561143612,5.9984,166.72,166.61,17.32199801]
[1729561144018,5.9984,166.72,166.58,15.6955]
[1729561144019,15.9101,166.74,166.63,17.32199801]
[1729561144196,5.9977,166.73,166.63,17.32199801]
[1729561144394,15.9101,166.74,166.65,17.32199801]
[1729561144615,21.9074,166.74,166.65,17.32199801]
[1729561144808,15.9101,166.74,166.65,17.32199801]
[1729561145004,5.9977,166.73,166.65,17.32199801]
[1729561145208,15.9101,166.74,166.65,17.32199801]
[1729561146301,5.9965,166.77,166.65,33.19409801]
[1729561146509,5.9965,166.77,166.67,17.32199801]
[1729561149430,43.776884,166.78,166.67,17.32199801]
[1729561149606,49.772984,166.78,166.67,17.32199801]
[1729561150027,5.9963,166.77,166.67,17.32199801]
[1729561150222,43.776884,166.78,166.65,15.8721]
[1729561150423,43.776884,166.73,166.61,32.49099801]
[1729561150614,43.776884,166.73,166.61,15.169]
[1729561150814,43.776884,166.73,166.61,32.49099801]
[1729561151022,5.9982,166.72,166.61,32.49099801]
[1729561151638,5.9986,166.71,166.61,15.169]
[1729561151806,6.6658,166.72,166.6,6.1491]
[1729561152011,5.9997,166.68,166.6,6.1491]
[1729561152927,5.9992,166.69,166.6,6.1491]
[1729561153723,43.776884,166.71,166.57,32.51109801]
[1729561154230,5.9994,166.69,166.57,32.51109801]
[1729561154528,5.9994,166.69,166.59,17.32199801]
[1729561156630,5.9988,166.7,166.59,17.32199801]
[1729561162620,5.9999,166.67,166.57,32.51109801]
[1729561162824,5.9995,166.69,166.57,32.51109801]
[1729561163731,25.9985,166.71,166.59,17.32199801]
[1729561163926,25.9985,166.71,166.61,17.32199801]
[1729561164127,15.5917,166.74,166.63,17.32199801]
[1729561164323,15.5917,166.74,166.62,29.933684]
[1729561164324,15.5917,166.74,166.62,6.1568]
[1729561164523,5.9991,166.7,166.62,6.1568]
[1729561171013,43.776884,166.73,166.58,23.72619801]
[1729561171338,5.9998,166.68,166.58,23.72619801]
[1729561171833,20.0,166.71,166.58,23.72619801]
[1729561172019,23.776884,166.73,166.6,17.32199801]
[1729561172218,20.0,166.72,166.6,17.32199801]
[1729561172837,5.9984,166.71,166.6,17.32199801]
[1729561174523,20.0,166.72,166.6,17.32199801]
[1729561174723,5.9987,166.71,166.6,17.32199801]
[1729561175525,20.0,166.72,166.6,17.32199801]
[1729561175730,5.9984,166.71,166.6,17.32199801]
[1729561175944,25.998,166.73,166.62,32.33299801]
[1729561176140,5.9984,166.71,166.62,32.33299801]
[1729561176449,5.9984,166.71,166.65,11.06908634]
[1729561180044,5.998,166.72,166.63,11.06908634]
[1729561180241,20.0,166.73,166.62,15.011]
[1729561181222,5.999,166.7,166.62,15.011]
[1729561182050,23.776884,166.72,166.62,15.011]
[1729561182231,23.776884,166.7,166.6,11.06908634]
[1729561182436,6.0002,166.67,166.58,17.47328634]
[1729561182639,6.0002,166.67,166.6,11.06908634]
[1729561183753,5.9995,166.68,166.6,11.06908634]
[1729561183949,5.9988,166.7,166.62,11.06908634]
[1729561184946,23.776884,166.72,166.62,11.06908634]
[1729561185248,5.9992,166.69,166.62,11.06908634]
[1729561188958,5.9992,166.69,166.6,11.06908634]
[1729561189173,5.9995,166.68,166.6,11.06908634]
[1729561189458,6.0,166.67,166.6,11.06908634]
[1729561191163,6.0003,166.66,166.6,11.06908634]
[1729561192566,5.9999,166.67,166.6,11.06908634]
[1729561199243,20.0,166.7,166.6,11.06908634]
[1729561199473,20.0,166.7,166.62,11.06908634]
[1729561199960,25.9989,166.7,166.62,11.06908634]
[1729561201367,25.9989,166.7,166.58,12.66505349]
[1729561201368,6.0,166.67,166.58,12.66505349]
[1729561201570,6.0,166.67,166.59,11.06908634]
[1729561202185,20.0,166.71,166.59,11.06908634]
[1729561202479,6.0,166.67,166.59,11.06908634]
[1729561211259,6.0,166.67,166.61,11.06908634]
[1729561215580,5.9993,166.69,166.61,11.06908634]
[1729561216167,5.9993,166.69,166.63,11.06908634]
[1729561216572,5.998,166.73,166.65,11.06908634]
[1729561216777,5.9974,166.74,166.67,11.06908634]
[1729561217481,5.9962,166.77,166.67,11.06908634]
[1729561217687,16.3344,166.78,166.69,11.06908634]
[1729561217864,22.3304,166.78,166.71,11.06908634]
[1729561219394,5.9963,166.77,166.71,11.06908634]
[1729561221092,5.9963,166.77,166.69,11.06908634]
[1729561230897,5.9963,166.77,166.71,11.06908634]
[1729561231589,5.9959,166.78,166.71,11.06908634]
[1729561231792,5.9965,166.77,166.71,11.06908634]
[1729561232681,5.9965,166.77,166.69,11.06908634]
[1729561235201,5.9966,166.76,166.69,11.06908634]
[1729561236203,20.0,166.78,166.71,11.06908634]
[1729561236204,5.9962,166.78,166.71,11.06908634]
[1729561239494,5.9948,166.81,166.73,11.06908634]
[1729561239712,5.9948,166.81,166.75,11.06908634]
[1729561240591,22.1084,166.82,166.75,11.06908634]
[1729561240805,5.9951,166.81,166.75,11.06908634]
[1729561241194,16.1137,166.82,166.75,11.06908634]
[1729561241490,5.9952,166.8,166.75,11.06908634]
[1729561241899,5.9952,166.8,166.73,11.06908634]
[1729561242623,6.3678,166.84,166.75,11.06908634]
[1729561242785,5.9937,166.84,166.77,11.06908634]
[1729561244219,16.3338,166.89,166.81,11.06908634]
[1729561244415,16.3338,166.89,166.76,21.5049]
[1729561244416,6.6085,166.92,166.83,11.06908634]
[1729561244601,5.9913,166.91,166.83,11.06908634]
[1729561244805,16.3338,166.93,166.83,11.06908634]
[1729561245002,5.9909,166.92,166.85,11.06908634]
[1729561245911,5.9909,166.92,166.82,22.7532]
[1729561245912,6.5335,166.96,166.87,11.06908634]
[1729561246302,5.9895,166.96,166.87,11.06908634]
[1729561246492,5.9898,166.95,166.87,11.06908634]
[1729561247905,5.9898,166.95,166.83,23.776884]
[1729561248208,5.9898,166.95,166.86,11.06908634]
[1729561248413,5.9905,166.93,166.86,11.06908634]
[1729561248598,5.9913,166.91,166.82,22.7532]
[1729561248802,5.9913,166.91,166.82,33.82228634]
[1729561251115,5.9919,166.9,166.8,11.06908634]
[1729561255319,43.776884,166.91,166.79,23.776884]
[1729561255491,43.776884,166.91,166.79,34.84597034]
[1729561256215,5.9923,166.89,166.79,34.84597034]
[1729561256693,43.776884,166.91,166.78,21.3239]
[1729561257204,5.9924,166.88,166.79,11.06908634]
[1729561261017,43.776884,166.91,166.79,11.06908634]
[1729561261018,5.993,166.87,166.79,11.06908634]
[1729561262526,43.776884,166.91,166.78,32.39298634]
[1729561262728,43.776884,166.89,166.78,32.39298634]
[1729561263026,5.9929,166.87,166.78,32.39298634]
[1729561266517,5.9929,166.87,166.78,21.3239]
[1729561266714,5.9935,166.85,166.78,15.1748]
[1729561266915,5.9923,166.88,166.74,32.71708634]
[1729561267119,5.9937,166.85,166.74,32.71708634]
[1729561268128,5.9937,166.85,166.75,23.776884]
[1729561268924,6.6183,166.86,166.74,21.648]
[1729561269124,43.776884,166.85,166.74,15.0775]
[1729561269419,5.9949,166.81,166.74,15.0775]
[1729561269831,20.0,166.83,166.74,15.0775]
[1729561270012,5.9944,166.82,166.74,15.0775]
[1729561271218,20.0,166.83,166.74,15.0775]
[1729561271610,5.9948,166.82,166.74,15.0775]
[1729561274711,20.0,166.83,166.7,28.78511036]
[1729561275037,23.776884,166.8,166.7,22.5189]
[1729561275210,5.9955,166.79,166.7,22.5189]
[1729561275409,23.776884,166.8,166.7,22.5189]
[1729561275709,23.776884,166.78,166.67,6.26761273]
[1729561275909,23.776884,166.78,166.66,21.587]
[1729561275910,20.0,166.77,166.66,32.65608634]
[1729561276129,20.0,166.77,166.68,11.06908634]
[1729561276130,5.9966,166.76,166.68,11.06908634]
[1729561276308,5.9964,166.77,166.68,11.06908634]
[1729561277726,43.776884,166.77,166.66,32.65608634]
[1729561277916,5.9966,166.76,166.66,32.65608634]
[1729561279639,5.997,166.75,166.66,32.65608634]
[1729561288529,5.9977,166.73,166.66,21.587]
[1729561288734,5.9973,166.75,166.66,21.587]
[1729561289639,5.9973,166.74,166.66,21.587]
[1729561295222,43.776884,166.77,166.66,32.65608634]
[1729561295429,49.773184,166.77,166.68,11.06908634]
[1729561297548,5.9956,166.79,166.68,11.06908634]
[1729561297730,5.9956,166.79,166.7,11.06908634]
[1729561298255,5.9956,166.79,166.64,0.1]
[1729561298427,15.3033,166.82,166.64,0.1]
[1729561298428,5.9975,166.74,166.64,11.06908634]
[1729561298946,41.3001,166.76,166.66,11.06908634]
[1729561300251,35.3033,166.76,166.66,11.06908634]
[1729561300447,5.9971,166.75,166.63,6.26885581]
[1729561300646,5.998,166.73,166.62,23.776884]
[1729561300827,5.998,166.73,166.62,34.84597034]
[1729561302849,5.9985,166.71,166.62,11.06908634]
[1729561303254,5.9985,166.71,166.61,21.9924]
[1729561308858,5.9985,166.71,166.62,11.06908634]
[1729561311638,5.9992,166.69,166.61,21.9924]
[1729561311845,5.9992,166.69,166.61,15.3519]
[1729561312660,5.9988,166.7,166.61,26.42098634]
[1729561317366,5.9991,166.69,166.61,26.42098634]
[1729561317547,5.9991,166.69,166.61,15.3519]
[1729561317861,5.9988,166.7,166.61,15.3519]
[1729561320044,5.9984,166.72,166.62,11.06908634]
[1729561320263,5.9984,166.72,166.64,11.06908634]
[1729561321466,5.9984,166.72,166.63,11.06908634]
[1729561324548,20.0,166.74,166.65,11.06908634]
[1729561327647,5.997,166.75,166.65,11.06908634]
[1729561329665,20.0,166.74,166.64,6.3753]
[1729561329865,5.9977,166.73,166.63,11.06908634]
[1729561331972,5.9977,166.73,166.65,11.06908634]
[1729561333475,5.9973,166.74,166.65,11.06908634]
[1729561333856,23.776884,166.73,166.61,15.3519]
[1729561334057,5.998,166.72,166.64,11.06908634]
[1729561336874,5.9988,166.7,166.61,15.3519]
[1729561337278,5.9985,166.71,166.61,15.3519]
[1729561337462,23.776884,166.75,166.62,11.06908634]
[1729561337659,20.0,166.74,166.62,11.06908634]
[1729561337881,23.776884,166.73,166.62,11.06908634]
[1729561338457,5.9981,166.72,166.62,11.06908634]
[1729561341277,23.776884,166.73,166.61,15.3519]
[1729561341481,5.9985,166.71,166.62,11.06908634]
[1729561343288,20.0,166.74,166.62,11.06908634]
[1729561343588,23.776884,166.74,166.62,11.06908634]
[1729561343774,25.9979,166.73,166.64,11.06908634]
[1729561345361,15.3033,166.76,166.68,11.06908634]
[1729561345558,31.2463,166.8,166.67,15.3997]
[1729561345764,5.9966,166.76,166.68,11.06908634]
[1729561346068,31.2463,166.8,166.62,23.776884]
[1729561346069,22.7483,166.78,166.63,15.7114]
[1729561346267,22.8483,166.78,166.63,15.7114]
[1729561346681,5.9983,166.72,166.63,15.7114]
[1729561347763,5.9983,166.72,166.63,26.78048634]